bitfinex/quotes_ETHUSD_20241129
["timestamp","ask_amount","ask_price","bid_price","bid_amount"]
[1732871394884,0.26221457,3567.1,3566.9,0.55]
[1732871395045,0.26221457,3567.1,3567.0,0.61124271]
[1732871395474,3.06560457,3567.1,3567.0,0.61124271]
[1732871395676,0.26221457,3567.1,3567.0,0.61124271]
[1732871398369,0.7764,3567.2,3567.1,0.55]
[1732871398657,1.03873428,3567.2,3567.1,0.61119972]
[1732871399063,3.84204428,3567.2,3567.1,0.61119972]
[1732871400195,6.86154428,3567.2,3567.1,0.06119972]
[1732871400491,6.86154428,3567.2,3565.9,0.8051]
[1732871400492,0.7959,3566.6,3565.9,0.8051]
[1732871400705,3.06625428,3566.5,3565.9,0.8051]
[1732871401016,0.26233428,3566.4,3566.0,0.06162466]
[1732871401158,2.80402,3566.3,3566.0,0.06162466]
[1732871401904,2.80386,3566.5,3566.1,0.55]
[1732871402057,0.26243581,3566.4,3566.1,0.55]
[1732871402277,0.26243581,3566.4,3566.3,0.55]
[1732871402611,0.26243581,3566.4,3566.3,0.61196179]
[1732871402827,0.26243581,3566.6,3566.3,0.61196179]
[1732871402995,0.26243581,3566.5,3566.3,0.61196179]
[1732871403176,0.26243581,3566.6,3566.3,0.61196179]
[1732871403490,0.26243581,3566.5,3566.3,0.61196179]
[1732871403672,0.26243581,3566.6,3566.3,0.61196179]
[1732871403873,3.06629581,3566.5,3566.3,0.61196179]
[1732871404070,2.80386,3566.5,3566.3,0.61196179]
[1732871404518,0.26250118,3566.4,3566.3,0.61196179]
[1732871405118,2.80386,3566.5,3566.3,0.61196179]
[1732871406060,0.26252973,3566.4,3566.3,0.61196179]
[1732871408218,3.06646973,3566.4,3566.3,0.61196179]
[1732871408377,3.06646973,3566.4,3566.3,0.06196179]
[1732871408583,3.06646973,3566.4,3565.7,0.55]
[1732871408891,2.80414,3566.2,3565.9,0.55]
[1732871409320,2.80414,3566.2,3566.1,0.55]
[1732871409625,3.06673632,3566.2,3566.1,0.61167848]
[1732871411489,2.80414,3566.2,3566.1,0.61167848]
[1732871412038,3.06674122,3566.2,3566.1,0.61167848]
[1732871412188,2.80377,3566.7,3566.1,1.38007848]
[1732871412392,0.26259545,3566.6,3566.1,1.38007848]
[1732871412639,0.26259545,3566.5,3566.1,4.18419848]
[1732871412839,2.80363,3566.8,3566.1,4.18419848]
[1732871412992,0.262589,3566.7,3566.1,4.18419848]
[1732871413193,0.262589,3566.6,3566.1,4.18419848]
[1732871413440,0.262589,3566.5,3566.1,4.18419848]
[1732871413596,2.80363,3566.8,3566.1,4.18419848]
[1732871413796,0.26260123,3566.7,3566.1,4.18419848]
[1732871413996,0.26260123,3566.6,3566.1,4.18419848]
[1732871414300,0.26260123,3566.5,3566.1,4.18419848]
[1732871414527,2.80372,3566.7,3566.1,4.18419848]
[1732871414697,0.26261002,3566.6,3566.1,4.18419848]
[1732871414892,0.26261002,3566.5,3566.1,5.03243692]
[1732871415098,2.80372,3566.7,3566.1,5.03243692]
[1732871415398,0.2626097,3566.6,3566.1,5.03243692]
[1732871415599,0.2626097,3566.5,3566.1,5.03243692]
[1732871415841,2.80372,3566.7,3566.1,5.03243692]
[1732871416134,0.26261868,3566.6,3566.1,5.03243692]
[1732871416434,2.80348,3567.0,3566.1,5.03243692]
[1732871416435,0.26261868,3566.5,3566.4,0.55]
[1732871416633,0.26261868,3566.9,3566.4,1.3065]
[1732871416833,0.26261868,3566.8,3566.4,4.17204397]
[1732871417042,0.26261868,3566.7,3566.4,4.17204397]
[1732871417203,2.80348,3567.0,3566.4,4.17204397]
[1732871417402,0.26260922,3566.9,3566.4,1.36811397]
[1732871417642,0.26260922,3566.8,3566.4,1.36811397]
[1732871417843,0.26260922,3566.7,3566.4,1.36811397]
[1732871418049,0.26260922,3566.6,3566.4,1.36811397]
[1732871418341,2.80348,3567.0,3566.4,1.36811397]
[1732871418541,0.26261863,3566.9,3566.7,0.55]
[1732871418844,0.26261863,3566.8,3566.7,0.55]
[1732871419041,0.26261863,3567.1,3566.7,0.55]
[1732871419342,0.7852,3567.2,3566.7,0.55]
[1732871419343,0.26261863,3567.0,3566.7,0.55]
[1732871419544,0.7852,3567.2,3566.7,0.55]
[1732871419545,0.26261863,3566.9,3566.7,0.55]
[1732871419719,0.26261863,3566.8,3566.7,0.55]
[1732871423246,0.26261863,3566.8,3566.5,3.35386]
[1732871423557,0.7852,3567.2,3566.5,3.35386]
[1732871423710,0.26254226,3567.1,3566.5,3.35386]
[1732871424042,0.26254226,3567.0,3566.5,0.55]
[1732871424246,0.26254226,3566.9,3566.7,0.55]
[1732871424440,0.26254226,3566.8,3566.7,0.55]
[1732871424643,0.7852,3567.2,3566.7,0.55]
[1732871424859,0.26250655,3567.1,3566.7,0.55]
[1732871425061,0.7852,3567.2,3566.7,0.55]
[1732871425218,0.26250804,3567.0,3566.7,0.55]
[1732871425423,0.26250804,3566.9,3566.7,0.55]
[1732871425626,0.26250804,3566.8,3566.7,0.55]
[1732871427118,0.26254936,3566.8,3566.7,0.55]
[1732871427315,0.26254936,3566.8,3566.4,0.7565]
[1732871427316,0.26254936,3566.8,3566.5,0.55]
[1732871427515,3.58852,3567.2,3566.5,4.045301]
[1732871427743,0.26253812,3567.1,3566.5,3.35386]
[1732871427966,0.26253812,3567.0,3566.5,0.55]
[1732871428267,0.26253812,3566.9,3566.5,0.55]
[1732871428466,0.26253812,3566.8,3566.5,0.55]
[1732871428630,3.58852,3567.2,3566.5,0.55]
[1732871428831,2.80353,3567.0,3566.5,0.55]
[1732871429033,0.26252131,3566.9,3566.5,0.55]
[1732871429237,0.26252131,3566.8,3566.5,0.55]
[1732871429444,2.80353,3567.0,3566.5,0.55]
[1732871429658,0.26252471,3566.9,3566.5,0.55]
[1732871429860,0.26252471,3566.8,3566.5,0.55]
[1732871430033,0.26252471,3566.7,3566.5,0.55]
[1732871430239,2.80353,3567.0,3566.5,0.55]
[1732871430541,0.26253262,3566.9,3566.5,0.55]
[1732871430752,0.26253262,3566.8,3566.5,0.55]
[1732871430938,0.26253262,3566.7,3566.5,0.55]
[1732871431137,2.80353,3567.0,3566.5,0.55]
[1732871431453,0.26252328,3566.9,3566.5,0.55]
[1732871431660,2.80353,3567.0,3566.5,0.55]
[1732871431964,0.26252332,3566.9,3566.5,0.55]
[1732871432128,0.26252332,3566.8,3566.5,0.55]
[1732871432331,0.26252332,3566.7,3566.5,0.55]
[1732871432537,2.80353,3567.0,3566.5,0.55]
[1732871432737,0.26252774,3566.9,3566.5,0.55]
[1732871432985,0.26252774,3566.8,3566.5,0.55]
[1732871433181,3.58852,3567.2,3566.7,0.55]
[1732871433383,0.26252095,3567.1,3566.7,0.55]
[1732871433559,3.58852,3567.2,3566.7,0.55]
[1732871433560,0.26252095,3567.0,3566.8,0.09000299]
[1732871433754,0.26252095,3566.9,3566.8,0.09000299]
[1732871434079,0.26252095,3566.9,3566.5,0.55]
[1732871434284,0.26252095,3566.8,3566.5,0.55]
[1732871434448,2.80339,3567.1,3566.7,0.55]
[1732871434662,0.2625023,3567.0,3566.7,0.55]
[1732871434856,0.2625023,3566.9,3566.8,0.09000299]
[1732871435363,0.2625023,3566.9,3566.5,0.55]
[1732871435677,0.2625023,3566.8,3566.7,0.55]
[1732871436174,0.2625023,3566.8,3566.7,0.64004679]
[1732871436866,1.0424023,3566.8,3566.7,0.09004679]
[1732871437052,3.8460323,3566.8,3566.7,0.09004679]
[1732871437249,3.8460323,3566.8,3566.2,0.55]
[1732871437453,0.2625023,3566.7,3566.2,0.55]
[1732871437682,0.2625023,3566.6,3566.4,0.55]
[1732871437899,3.58353,3566.8,3566.4,0.55]
[1732871438182,0.26238547,3566.7,3566.5,0.09013205]
[1732871438384,0.26238547,3566.6,3566.5,0.09013205]
[1732871439483,3.06617547,3566.6,3566.5,0.09013205]
[1732871439854,2.80389,3566.5,3566.1,0.55]
[1732871440184,0.26238547,3566.4,3566.1,0.55]
[1732871440394,0.26249044,3566.3,3565.9,0.55]
[1732871440596,2.80389,3566.5,3565.9,0.55]
[1732871440744,0.26252461,3566.4,3565.9,3.35432]
[1732871440945,2.80376,3566.7,3565.9,4.050829]
[1732871441145,0.26253539,3566.6,3565.9,4.050829]
[1732871441382,0.26253539,3566.5,3566.1,0.55]
[1732871441554,0.26253539,3566.4,3566.1,0.55]
[1732871441758,2.80376,3566.7,3566.1,0.55]
[1732871441984,3.06643271,3566.6,3566.1,0.55]
[1732871442286,0.26262271,3566.5,3566.1,0.55]
[1732871442598,0.26262271,3566.4,3566.0,0.55]
[1732871442878,0.26262271,3566.3,3566.0,0.55]
[1732871443086,2.80381,3566.6,3566.0,0.55]
[1732871443288,0.26265578,3566.5,3565.9,0.55]
[1732871443585,0.26265578,3566.4,3565.9,0.55]
[1732871443889,0.26265564,3566.3,3565.9,0.96607]
[1732871444049,2.80379,3566.6,3565.9,0.96607]
[1732871444250,0.26265815,3566.5,3565.9,0.96607]
[1732871444446,0.26265815,3566.4,3565.9,0.96607]
[1732871444648,0.7799,3566.8,3565.9,0.96607]
[1732871444847,3.06638143,3566.7,3565.9,0.96607]
[1732871445188,0.26265143,3566.6,3565.9,0.96607]
[1732871445484,0.26265143,3566.5,3565.9,0.96607]
[1732871447490,2.8038,3566.6,3565.9,0.96607]
[1732871448146,3.58354,3566.8,3566.1,0.55]
[1732871448381,0.358354,3566.7,3566.1,0.55]
[1732871448581,0.358354,3566.7,3566.3,0.55]
[1732871448780,3.162074,3566.7,3566.3,0.55]
[1732871449008,3.162074,3566.7,3566.4,0.09021358]
[1732871449353,3.162074,3566.7,3566.3,0.55]
[1732871449667,3.162074,3566.7,3566.4,0.09021358]
[1732871450173,2.80379,3566.6,3566.3,0.55]
[1732871450560,3.0664766,3566.6,3566.4,0.09021358]
[1732871451082,3.0664766,3566.6,3566.3,0.55]
[1732871451523,3.0664766,3566.6,3566.4,0.09021358]
[1732871452020,3.0664766,3566.6,3566.3,0.55]
[1732871452205,2.80387,3566.5,3566.4,0.09021358]
[1732871452529,2.80387,3566.5,3566.3,0.55]
[1732871454027,2.80387,3566.5,3566.4,0.09021358]
[1732871454485,2.80387,3566.5,3566.3,0.55]
[1732871454955,2.80387,3566.5,3566.4,0.09023925]
[1732871455443,2.80387,3566.5,3566.3,0.55]
[1732871455645,3.1802379,3566.5,3566.4,0.09022273]
[1732871455850,3.1802379,3566.5,3566.3,0.55]
[1732871456023,3.1802379,3566.5,3566.4,0.09021358]
[1732871456231,3.06646369,3566.5,3566.3,0.55]
[1732871456433,0.26258369,3566.4,3566.3,0.55]
[1732871457913,0.26258369,3566.4,3566.0,0.55]
[1732871458147,2.80372,3566.7,3566.0,0.55]
[1732871458148,0.26258369,3566.3,3566.0,0.55]
[1732871458337,2.80372,3566.7,3566.1,1.345]
[1732871458520,0.262554,3566.6,3566.1,1.345]
[1732871458721,0.262554,3566.5,3566.1,1.345]
[1732871459054,0.262554,3566.4,3566.1,1.345]
[1732871459266,0.262554,3566.3,3566.1,1.345]
[1732871459549,2.80372,3566.7,3566.1,1.345]
[1732871459765,0.26256825,3566.6,3566.1,1.345]
[1732871459913,0.26256825,3566.5,3566.1,1.345]
[1732871460110,0.26256825,3566.4,3566.1,1.345]
[1732871460312,0.26256825,3566.3,3566.1,1.345]
[1732871460548,2.80372,3566.7,3566.1,1.345]
[1732871460758,3.06637041,3566.6,3566.1,1.345]
[1732871461052,0.26258071,3566.5,3566.1,1.345]
[1732871461253,0.26258071,3566.4,3566.1,1.345]
[1732871461552,0.26258071,3566.3,3566.1,1.345]
[1732871461749,2.80387,3566.5,3566.1,1.345]
[1732871461961,0.26259422,3566.4,3566.1,1.345]
[1732871462118,0.26259422,3566.3,3566.1,1.345]
[1732871462314,2.80387,3566.5,3566.1,1.345]
[1732871462520,0.26260893,3566.4,3566.1,1.345]
[1732871462720,0.26260893,3566.3,3566.1,1.345]
[1732871462962,2.80387,3566.5,3566.1,1.345]
[1732871463256,2.80387,3566.5,3566.3,0.55]
[1732871463257,0.26261826,3566.4,3566.3,0.55]
[1732871463642,0.26261826,3566.4,3566.3,0.64029266]
[1732871465532,2.80387,3566.5,3566.3,0.64029266]
[1732871465725,0.26273276,3566.4,3566.3,0.64029266]
[1732871466124,0.26273276,3566.4,3566.0,0.55]
[1732871466324,0.26273276,3566.3,3566.0,0.55]
[1732871466626,0.26273276,3566.2,3566.1,0.09038029]
[1732871466831,0.26273276,3566.2,3566.1,0.64038029]
[1732871467250,0.26273276,3566.2,3566.1,0.09038029]
[1732871467432,0.26273276,3566.2,3565.9,0.8273]
[1732871467627,0.26273276,3566.1,3566.0,0.09037474]
[1732871469917,0.26273276,3566.1,3566.0,0.64037474]
[1732871472439,0.26276886,3566.1,3566.0,0.64037474]
[1732871472635,0.26276886,3566.1,3566.0,0.63874346]
[1732871472865,3.63178,3566.5,3566.0,0.63874346]
[1732871473057,0.26275101,3566.4,3566.0,1.44844346]
[1732871473258,0.26275101,3566.4,3566.3,0.55]
[1732871473563,0.26274647,3566.4,3566.3,0.63602169]
[1732871474649,3.06668647,3566.4,3566.3,0.08602169]
[1732871474849,3.06668647,3566.4,3565.8,0.55]
[1732871475055,0.26274647,3566.3,3566.0,0.55]
[1732871475380,0.26274647,3566.2,3566.1,0.08594618]
[1732871476226,3.06684647,3566.2,3566.1,0.08594618]
[1732871476667,3.82134647,3566.2,3565.3,0.7916]
[1732871476961,0.26274647,3566.1,3565.6,2.80456]
[1732871477162,0.26274647,3566.0,3565.7,2.80448]
[1732871477478,0.26274647,3565.9,3565.8,2.80441]
[1732871477685,0.7545,3566.5,3565.8,2.80441]
[1732871477686,3.55837,3566.5,3565.8,2.80441]
[1732871477985,0.26271368,3566.4,3566.0,0.55]
[1732871478279,0.26271368,3566.3,3566.0,0.55]
[1732871478479,0.26271368,3566.2,3566.0,0.55]
[1732871478650,0.26271368,3566.1,3566.0,0.55]
[1732871479540,2.80426,3566.0,3565.7,0.55]
[1732871479744,2.80426,3566.0,3565.4,0.55]
[1732871479947,0.26278277,3565.9,3565.4,0.55]
[1732871480255,3.06721277,3565.8,3565.5,0.08635579]
[1732871480474,0.26278277,3565.7,3565.3,0.7669]
[1732871480646,2.80465,3565.5,3564.0,1.39106698]
[1732871480942,2.80497,3565.1,3564.4,2.8055]
[1732871481943,2.80473,3565.4,3564.2,5.12232591]
[1732871482188,2.80491,3565.2,3564.4,2.80546]
[1732871482488,2.80491,3565.2,3564.5,0.55]
[1732871482796,2.80481,3565.3,3564.7,1.3487]
[1732871483961,2.80442,3565.8,3565.0,0.55]
[1732871484169,2.80458,3565.6,3565.0,0.55]
[1732871484568,2.80442,3565.8,3565.1,0.55]
[1732871484812,0.26217836,3565.7,3565.1,0.55]
[1732871486490,0.26217836,3565.7,3565.2,3.35487]
[1732871486652,0.26212747,3565.9,3565.2,3.35487]
[1732871486850,0.26212747,3565.8,3565.2,3.35487]
[1732871487056,0.26212747,3565.9,3565.4,0.55]
[1732871487591,2.80443,3565.8,3565.4,0.55]
[1732871489152,2.80429,3566.0,3565.4,0.55]
[1732871489354,0.26213361,3565.9,3565.4,0.55]
[1732871490549,0.8275,3566.2,3565.4,0.55]
[1732871490550,3.06640361,3566.0,3565.4,0.55]
[1732871490749,0.26213361,3565.9,3565.4,0.55]
[1732871491703,0.26213361,3566.1,3565.4,3.35469]
[1732871491996,0.26213361,3566.0,3565.4,3.35469]
[1732871492192,0.26213361,3565.9,3565.4,0.55]
[1732871492401,0.26213361,3566.0,3565.4,3.35473]
[1732871492622,2.80419,3566.1,3565.4,3.35473]
[1732871492623,0.26213361,3565.9,3565.4,3.35473]
[1732871492829,0.26213361,3566.0,3565.4,3.35473]
[1732871493132,0.26213361,3565.9,3565.5,0.08671166]
[1732871493301,2.80419,3566.1,3565.5,0.08671166]
[1732871493302,0.26213361,3566.0,3565.5,0.08671166]
[1732871493497,0.26210919,3566.0,3565.5,0.08671166]
[1732871493702,0.26210919,3565.9,3565.5,0.08671166]
[1732871494043,0.26210919,3566.0,3565.5,0.08671166]
[1732871494204,0.26210919,3565.9,3565.5,0.08671166]
[1732871494529,0.26210919,3566.0,3565.5,0.08671166]
[1732871494828,0.26210919,3565.9,3565.5,0.08671166]
[1732871494989,0.26210919,3566.0,3565.5,0.08671166]
[1732871495326,0.26210919,3565.9,3565.5,0.08671166]
[1732871495530,0.26210919,3566.0,3565.5,0.08671166]
[1732871495702,0.26210919,3565.9,3565.5,0.08671166]
[1732871495904,3.06636919,3566.0,3565.5,0.08671166]
[1732871496111,0.26210919,3565.9,3565.5,0.08671166]
[1732871497394,0.26210919,3565.8,3565.5,0.08671166]
[1732871497594,0.26210919,3565.9,3565.6,0.55]
[1732871497828,3.63161,3566.2,3565.6,0.55]
[1732871497829,0.26210919,3566.1,3565.6,0.55]
[1732871498026,0.26210919,3566.0,3565.7,0.08668222]
[1732871498223,0.26210919,3565.9,3565.7,0.08668222]
[1732871498390,0.26210919,3566.1,3565.8,0.8308]
[1732871498711,0.26210919,3566.0,3565.9,0.0866925]
[1732871500189,0.26210919,3566.0,3565.6,1.347]
[1732871500390,2.80419,3566.1,3565.9,0.0866925]
[1732871500692,0.54251041,3566.0,3565.6,1.347]
[1732871500892,0.26209141,3565.9,3565.6,1.347]
[1732871501391,0.280419,3566.0,3565.6,1.347]
[1732871501392,0.26209141,3565.8,3565.6,1.347]
[1732871501703,0.26209141,3565.9,3565.6,1.347]
[1732871501910,0.26209141,3566.0,3565.6,1.347]
[1732871502242,0.26209141,3565.9,3565.6,1.347]
[1732871502412,0.26209141,3565.8,3565.6,1.347]
[1732871502734,0.26209141,3566.0,3565.6,1.347]
[1732871503026,0.26209141,3565.9,3565.6,1.347]
[1732871503230,0.26209141,3566.0,3565.6,1.347]
[1732871503528,0.26209141,3565.9,3565.6,1.347]
[1732871503765,0.26209141,3566.2,3565.6,1.347]
[1732871503903,2.8041,3566.2,3565.6,1.347]
[1732871504439,0.26216578,3566.1,3565.6,4.15155]
[1732871504592,2.80403,3566.3,3565.6,4.15155]
[1732871504593,0.26216578,3566.0,3565.6,4.15155]
[1732871504929,2.80403,3566.3,3565.6,4.15155]
[1732871505086,0.61789624,3566.2,3565.6,4.15155]
[1732871505293,0.26221324,3566.1,3565.6,4.15155]
[1732871505495,0.26221324,3566.0,3565.6,4.15155]
[1732871505842,0.26221324,3566.1,3565.6,4.15155]
[1732871506005,0.26221324,3566.0,3565.6,4.15155]
[1732871506212,0.26221324,3566.2,3565.6,4.15155]
[1732871506393,2.80403,3566.3,3565.6,4.15155]
[1732871506394,0.26221324,3566.1,3565.6,4.15155]
[1732871506705,2.80403,3566.3,3565.7,0.08682232]
[1732871506907,0.26229307,3566.2,3565.7,0.08682232]
[1732871507101,0.26229307,3566.1,3565.6,4.15155]
[1732871507330,2.80403,3566.3,3565.6,4.15155]
[1732871507720,0.26229673,3566.2,3565.9,1.3774]
[1732871507921,0.26229673,3566.1,3565.9,0.8274]
[1732871508129,0.26229673,3566.4,3566.0,0.08669081]
[1732871508321,0.26229673,3566.3,3566.0,0.08669081]
[1732871508525,0.26229673,3566.2,3566.0,0.08669081]
[1732871508762,0.38868667,3566.4,3566.0,0.08669081]
[1732871509052,0.26231157,3566.3,3565.9,3.63173]
[1732871509252,0.26231157,3566.2,3565.9,3.63173]
[1732871509555,0.26228392,3566.3,3566.0,2.89094081]
[1732871509861,0.26228392,3566.2,3566.0,2.89094081]
[1732871510074,0.26228392,3566.6,3566.0,2.89094081]
[1732871510222,0.26228392,3566.5,3566.1,0.8106]
[1732871510416,0.26228392,3566.4,3566.1,0.8106]
[1732871510730,0.26228392,3566.3,3566.2,3.44070315]
[1732871510914,0.26226273,3566.8,3566.2,3.44070315]
[1732871511118,0.26226273,3566.7,3566.2,3.44070315]
[1732871511314,0.26226273,3566.6,3566.3,0.55]
[1732871511554,0.26226273,3566.5,3566.3,0.63640882]
[1732871511761,0.26226273,3566.4,3566.3,0.63640882]
[1732871511921,3.06596273,3566.8,3566.3,0.63640882]
[1732871512123,0.26226273,3566.7,3566.3,0.63640882]
[1732871512449,2.8037,3566.8,3566.3,0.63640882]
[1732871512450,0.26226273,3566.6,3566.3,0.63640882]
[1732871512760,2.8037,3566.8,3566.3,0.63640882]
[1732871512923,0.26223824,3566.5,3566.3,0.63640882]
[1732871513119,2.8037,3566.8,3566.3,0.63640882]
[1732871514219,0.26227628,3566.7,3566.3,0.63640882]
[1732871514451,0.26227628,3566.6,3566.3,0.63640882]
[1732871514637,0.26227628,3566.5,3566.3,0.63640882]
[1732871514840,2.8037,3566.8,3566.3,0.63640882]
[1732871515042,0.26225514,3566.7,3566.3,0.63640882]
[1732871515369,0.26225441,3566.6,3566.3,0.63640882]
[1732871515565,0.2622571,3566.5,3566.3,0.63640882]
[1732871515854,0.2622571,3566.7,3566.3,0.63640882]
[1732871516064,0.2622571,3566.6,3566.3,0.63640882]
[1732871516223,0.2622571,3566.5,3566.3,0.63640882]
[1732871516424,0.26218573,3566.7,3566.3,0.63640882]
[1732871516624,0.26218573,3566.6,3566.3,0.63640882]
[1732871516852,0.26218573,3566.5,3566.3,0.63640882]
[1732871517053,2.8037,3566.8,3566.3,0.63640882]
[1732871522862,6.56398,3567.0,3566.3,0.63640882]
[1732871523467,0.7605,3567.0,3566.3,0.63640882]
[1732871523657,2.80357,3566.9,3566.3,0.63640882]
[1732871524868,2.80378,3566.7,3566.3,0.08640882]
[1732871525164,3.55764,3566.4,3565.9,0.55]
[1732871525728,2.8038,3566.6,3565.9,0.55]
[1732871526965,2.80368,3566.8,3566.4,0.8172]
[1732871527165,2.80356,3566.9,3566.4,0.8172]
[1732871528129,2.80364,3566.8,3566.4,0.8172]
[1732871529033,4.700447,3567.1,3566.5,0.55]
[1732871529230,2.80347,3567.0,3566.5,0.55]
[1732871531484,2.80355,3566.9,3566.5,0.55]
[1732871532251,2.80355,3566.9,3566.4,0.8172]
[1732871536565,2.80342,3567.1,3566.4,0.8172]
[1732871536951,2.80342,3567.1,3566.4,3.62113]
[1732871537294,1.122386,3567.2,3566.6,2.80373]
[1732871537459,1.122386,3567.2,3566.7,0.8208]
[1732871537786,2.80334,3567.2,3566.7,0.8208]
[1732871538083,2.80334,3567.2,3566.8,0.08289376]
[1732871538475,2.80334,3567.2,3566.7,0.8208]
[1732871538786,5.8032,3567.4,3566.8,0.0828986]
[1732871538950,5.8032,3567.4,3566.9,0.55]
[1732871539147,5.8032,3567.4,3566.9,0.63285479]
[1732871539783,3.925268,3567.6,3566.9,0.63285479]
[1732871539984,2.80309,3567.5,3566.9,0.63285479]
[1732871540546,2.80309,3567.5,3567.0,0.7945]
[1732871540763,2.80309,3567.5,3567.0,0.87731099]
[1732871543250,2.80299,3567.7,3567.0,3.68077099]
[1732871543490,2.80299,3567.7,3567.1,0.55]
[1732871543662,2.80299,3567.7,3567.1,4.05962241]
[1732871543855,3.0,3567.8,3567.3,1.309]
[1732871544387,3.0,3567.8,3567.4,0.08263581]
[1732871544574,5.80286,3567.8,3567.4,0.08263581]
[1732871546653,8.60577,3567.8,3567.4,0.08263581]
[1732871546891,2.80293,3567.7,3567.4,0.08263581]
[1732871547095,2.80293,3567.7,3567.3,1.309]
[1732871547294,2.80293,3567.7,3567.5,0.0825498]
[1732871547458,2.80293,3567.7,3567.4,0.08259359]
[1732871547800,2.80293,3567.7,3567.5,0.0825498]
[1732871547999,2.80293,3567.7,3567.3,1.309]
[1732871548155,2.80293,3567.7,3567.6,0.08250602]
[1732871548347,2.80293,3567.7,3567.3,1.309]
[1732871548549,2.80293,3567.7,3567.4,0.08259359]
[1732871549356,2.80308,3567.5,3567.4,0.08259359]
[1732871549556,2.80308,3567.5,3567.1,0.7925]
[1732871549858,2.80308,3567.5,3567.4,0.08242436]
[1732871550191,2.80308,3567.5,3567.2,0.55]
[1732871550363,0.8104,3567.8,3567.2,0.55]
[1732871550554,2.80308,3567.5,3567.3,0.08246815]
[1732871550898,2.80316,3567.4,3567.2,0.55]
[1732871553264,2.80316,3567.4,3567.3,0.08246815]
[1732871553464,2.803,3567.6,3567.3,0.08246815]
[1732871553702,2.80309,3567.5,3567.2,0.55]
[1732871553866,2.80309,3567.5,3567.4,0.08248962]
[1732871554067,2.80309,3567.5,3567.3,0.08253341]
[1732871554400,2.80309,3567.5,3567.4,0.08248962]
[1732871554580,2.80309,3567.5,3567.2,0.55]
[1732871554776,2.80309,3567.5,3567.4,0.08248962]
[1732871554986,2.80309,3567.5,3567.2,0.55]
[1732871555157,2.80309,3567.5,3567.4,0.08248962]
[1732871555362,2.80309,3567.5,3567.2,0.55]
[1732871555664,2.80309,3567.5,3567.4,0.08263644]
[1732871556091,2.80309,3567.5,3567.1,0.7925]
[1732871556451,2.80309,3567.5,3567.4,0.08263644]
[1732871556619,2.80309,3567.5,3567.2,0.08272404]
[1732871556914,2.80309,3567.5,3567.1,0.7925]
[1732871557110,2.80309,3567.5,3567.3,0.08268941]
[1732871557267,2.80309,3567.5,3567.2,0.08272404]
[1732871557614,2.80309,3567.5,3567.3,0.08268024]
[1732871557910,2.80309,3567.5,3567.1,0.7925]
[1732871558060,2.80309,3567.5,3567.4,0.08263644]
[1732871558706,2.80309,3567.5,3567.1,0.7925]
[1732871558877,2.80309,3567.5,3567.4,0.08263644]
[1732871559076,2.80309,3567.5,3567.1,0.7925]
[1732871559278,2.80309,3567.5,3567.4,0.08263644]
[1732871559477,2.80309,3567.5,3567.1,0.7925]
[1732871559694,2.80309,3567.5,3567.4,0.08263644]
[1732871559879,2.803,3567.6,3567.1,0.7925]
[1732871560075,2.80292,3567.7,3567.1,0.7925]
[1732871560310,2.80314,3567.5,3567.2,0.08273321]
[1732871561621,2.80318,3567.4,3567.2,0.08273321]
[1732871563623,2.80307,3567.6,3567.2,0.08273321]
[1732871563946,2.80308,3567.5,3567.2,0.08273321]
[1732871564922,2.80316,3567.4,3567.2,0.08273321]
[1732871566406,2.80311,3567.5,3567.2,0.08273321]
[1732871567811,2.80311,3567.5,3567.3,0.7693]
[1732871568043,2.80311,3567.5,3567.3,0.85182598]
[1732871569149,3.0,3568.0,3567.3,0.85182598]
[1732871569150,5.80276,3568.0,3567.3,0.85182598]
[1732871569369,5.80276,3568.0,3567.4,1.06490619]
[1732871569370,2.80276,3568.0,3567.4,1.06490619]
[1732871569655,2.80276,3568.0,3567.5,0.90094097]
[1732871571818,5.80245,3568.4,3567.8,0.55]
[1732871572333,5.80245,3568.4,3568.0,0.7845]
[1732871572716,5.80245,3568.4,3568.1,0.08190258]
[1732871573972,2.80245,3568.4,3568.1,0.08190258]
[1732871574816,2.80214,3568.7,3568.1,0.08190258]
[1732871574817,2.80231,3568.5,3568.1,0.08190258]
[1732871575853,2.80247,3568.3,3568.1,0.08190258]
[1732871577813,2.80252,3568.3,3568.1,0.08190258]
[1732871580486,2.80253,3568.2,3568.1,0.08190258]
[1732871580787,2.80293,3567.7,3567.1,0.7517]
[1732871581285,2.80293,3567.7,3567.2,0.0819748]
[1732871582392,2.80293,3567.7,3567.3,0.55]
[1732871582569,2.80293,3567.7,3567.3,0.631931]
[1732871583997,2.80302,3567.6,3567.3,0.631931]
[1732871584698,2.80309,3567.5,3567.3,0.631931]
[1732871584855,2.80308,3567.5,3567.3,0.631931]
[1732871588528,2.80235,3568.5,3567.3,0.631931]
[1732871588842,2.80281,3567.9,3567.6,1.49385591]
[1732871589048,2.80281,3567.9,3567.5,0.55]
[1732871589197,0.788,3568.4,3567.5,0.55]
[1732871589198,5.60584,3567.8,3567.7,0.08189222]
[1732871589396,5.60584,3567.8,3567.7,0.55]
[1732871589598,2.80292,3567.8,3567.5,0.55]
[1732871590409,2.803,3567.6,3567.5,0.55]
[1732871593606,2.803,3567.7,3567.5,0.55]
[1732871593805,2.767143,3567.7,3567.5,0.55]
[1732871594741,2.803,3567.6,3567.5,0.55]
[1732871596442,2.803,3567.6,3567.2,0.55]
[1732871596741,2.803,3567.6,3567.2,0.83617559]
[1732871598020,2.803,3567.6,3567.4,0.55]
[1732871598219,2.803,3567.6,3567.5,0.08194221]
[1732871598441,2.803,3567.6,3567.5,0.55]
[1732871598640,2.803,3567.6,3567.5,0.63194221]
[1732871599750,3.5907,3568.0,3567.6,0.55]
[1732871599953,2.80292,3567.7,3567.6,0.55]
[1732871600131,2.80292,3567.7,3567.3,0.55]
[1732871600331,2.80292,3567.7,3567.5,0.55]